fUSD/lending_fUSD_20240531
["ID","MTS","AMOUNT","RATE_DAILY","PERIOD"]
[328345119,1717198233670,-300.64,0.00031567,2]
[328345121,1717198233679,-948.84,0.00031567,2]
[328345123,1717198233688,-150.4670561,0.00031567,7]
[328345125,1717198233699,-166.29644051,0.0003157,7]
[328345127,1717198233709,-174.0732142,0.00031571,7]
[328345128,1717198233718,-24475.3541,0.00031577,2]
[328345129,1717198233727,-196.88615978,0.00031579,7]
[328345130,1717198233736,-152.81332524,0.00031587,7]
[328345131,1717198233745,-167.0,0.00031618,2]
[328345132,1717198233754,-154.11866915,0.00031641,7]
[328345133,1717198233763,-28210.4658445,0.00031643,10]
[328345134,1717198233772,-948.84,0.00031667,2]
[328345135,1717198233781,-18026.4836,0.00031677,2]
[328345136,1717198233790,-2481.4311,0.00031677,2]
[328345137,1717198233799,-334.09113896,0.00031678,7]
[328345138,1717198233809,-153.89554534,0.000317,7]
[328345139,1717198233818,-4238.6773672,0.0003171,7]
[328345140,1717198233827,-4507.5887715,0.00031711,10]
[328345141,1717198233836,-500.0,0.00031723,2]
[328345142,1717198233846,-200.0,0.00031723,2]
[328345143,1717198233855,-150.4670561,0.00031725,7]
[328345144,1717198233864,-4238.6773672,0.00031732,7]
[328345145,1717198233875,-405.63,0.00031734,2]
[328345146,1717198233884,-652.78230323,0.00031755,7]
[328345147,1717198233893,-166.66666667,0.00031758,7]
[328345148,1717198233903,-154.11866915,0.00031761,7]
[328345149,1717198233913,-948.84,0.00031767,2]
[328345150,1717198233924,-154.6302252,0.0003177,7]
[328345151,1717198233935,-38381.5075,0.00031777,2]
[328345152,1717198233945,-1511.7761,0.00031777,2]
[328345153,1717198233955,-1445.49785238,0.00031778,2]
[328345154,1717198233965,-152.61175666,0.00031802,7]
[328345155,1717198233975,-154.11866915,0.00031824,7]
[328345156,1717198233985,-166.66666666,0.00031859,7]
[328345157,1717198233995,-28210.4658445,0.00031865,10]
[328345158,1717198234154,-166.66666668,0.0003187,7]
[328345159,1717198234165,-19955.81608219,0.00031877,4]
[328345160,1717198234176,-342.0,0.00031878,5]
[328345161,1717198234185,-1000.0,0.00031907,2]
[328345162,1717198234195,-4507.5887715,0.00031924,10]
[328345163,1717198234204,-178.46968007,0.00031928,7]
[328345164,1717198234214,-154.92222763,0.00031934,7]
[328345165,1717198234223,-1445.49785237,0.00031981,2]
[328345166,1717198234232,-652.78230323,0.00031988,7]
[328345167,1717198234242,-152.61175666,0.00032011,7]
[328345168,1717198234251,-948.84,0.0003202,2]
[328345169,1717198234261,-652.78230323,0.00032027,7]
[328345170,1717198234271,-4238.6773672,0.0003203,7]
[328345171,1717198234284,-150.4670561,0.0003205,7]
[328345172,1717198234294,-154.6302252,0.00032055,7]
[328345173,1717198234303,-196.88615978,0.0003207,7]
[328345174,1717198234312,-150.4670561,0.00032075,7]
[328345175,1717198234323,-300.64,0.00032078,2]
[328345176,1717198234333,-28210.4658445,0.00032088,10]
[328345177,1717198234342,-150.54755583,0.00032092,7]
[328345178,1717198234353,-196.88615978,0.00032104,7]
[328345179,1717198234364,-334.09113896,0.0003211,7]
[328345180,1717198234374,-196.88615978,0.00032127,7]
[328345181,1717198234383,-4507.5887715,0.00032137,10]
[328345182,1717198234393,-652.78230323,0.0003215,7]
[328345183,1717198234402,-154.11866915,0.00032151,7]
[328345184,1717198234411,-152.81332524,0.00032171,7]
[328345185,1717198234420,-159.25974205,0.00032182,7]
[328345186,1717198234428,-1445.49785237,0.00032184,2]
[328345187,1717198234437,-150.0,0.00032194,2]
[328345188,1717198234446,-652.78230323,0.00032219,7]
[328345189,1717198234455,-652.78230323,0.00032221,7]
[328345190,1717198234465,-4238.6773672,0.00032222,7]
[328345191,1717198234475,-4238.6773672,0.00032239,7]
[328345192,1717198234484,-334.09113896,0.00032241,7]
[328345193,1717198234493,-154.92222763,0.00032259,7]
[328345194,1717198234503,-154.80833393,0.00032266,7]
[328345195,1717198234512,-159.25974205,0.00032289,7]
[328345196,1717198234521,-162.87470479,0.00032292,7]
[328345197,1717198234531,-1673.55,0.00032299,2]
[328345198,1717198234540,-948.84,0.000323,2]
[328345199,1717198234549,-150.0,0.00032307,2]
[328345200,1717198234558,-28210.4658445,0.0003231,10]
[328345201,1717198234567,-150.4670561,0.00032326,7]
[328345202,1717198234576,-411.05,0.00032329,2]
[328345203,1717198234585,-4507.5887715,0.00032349,10]
[328345204,1717198234595,-160.83439443,0.00032351,7]
[328345205,1717198234604,-1445.49785237,0.00032387,2]
[328345206,1717198234613,-152.61175666,0.00032388,7]
[328345207,1717198234622,-154.46668613,0.00032393,7]
[328345208,1717198234632,-150.0,0.00032401,2]
[328345209,1717198234641,-161.45076227,0.00032405,7]
[328345210,1717198234651,-4238.6773672,0.00032432,7]
[328345211,1717198234660,-150.4670561,0.00032435,7]
[328345212,1717198234669,-652.78230323,0.00032436,7]
[328345213,1717198234678,-150.4670561,0.00032441,7]
[328345214,1717198234687,-152.61175666,0.00032465,7]
[328345215,1717198234696,-150.0,0.00032466,2]
[328345216,1717198234705,-300.0,0.00032466,2]
[328345217,1717198234715,-300.0,0.00032466,2]
[328345218,1717198234723,-352.63,0.00032466,2]
[328345219,1717198234733,-201.36,0.00032466,2]
[328345220,1717198234742,-404.73,0.00032466,2]
[328345221,1717198234751,-421.7,0.00032466,2]
[328345222,1717198234759,-300.0,0.00032466,2]
[328345223,1717198234768,-421.7,0.00032466,2]
[328345224,1717198234778,-150.0,0.00032466,2]
[328345225,1717198234786,-352.63,0.00032466,2]
[328345226,1717198234795,-421.7,0.00032466,2]
[328345227,1717198234804,-150.0,0.00032466,2]
[328345228,1717198234813,-352.63,0.00032466,2]
[328345229,1717198234822,-421.7,0.00032466,2]
[328345230,1717198234831,-352.63,0.00032466,2]
[328345231,1717198234840,-421.7,0.00032466,2]
[328345232,1717198234849,-352.63,0.00032466,2]
[328345233,1717198234858,-352.63,0.00032466,2]
[328345234,1717198234867,-798.37,0.00032466,2]
[328345235,1717198234876,-352.63,0.00032466,2]
[328345236,1717198234885,-154.92222763,0.00032468,7]
[328345237,1717198234894,-1000.0,0.000325,7]
[328345238,1717198234903,-196.88615978,0.00032518,7]
[328345239,1717198234912,-4238.6773672,0.00032519,7]
[328345240,1717198234923,-166.50001665,0.00032524,7]
[328345241,1717198234932,-28210.4658445,0.00032533,10]
[328345242,1717198234941,-2283.99,0.00032548,30]
[328345243,1717198234950,-152.81332524,0.00032562,7]
[328345244,1717198234959,-4507.5887715,0.00032562,10]
[328345245,1717198234969,-150.4670561,0.00032574,7]
[328345246,1717198234978,-158.03040467,0.0003258,7]
[328345247,1717198234987,-1445.49785237,0.00032591,2]
[328345248,1717198234996,-150.0,0.00032596,2]
[328345249,1717198235005,-334.09113896,0.00032597,7]
[328345250,1717198235014,-154.6302252,0.00032603,7]
[328345251,1717198235023,-150.0,0.00032613,2]
[328345252,1717198235033,-150.0,0.00032622,2]
[328345253,1717198235041,-150.0,0.00032628,2]
[328345254,1717198235050,-215.13326472,0.00032632,4]
[328345255,1717198235059,-153.16583406,0.00032637,7]
[328345256,1717198235069,-154.6302252,0.00032639,7]
[328345257,1717198235078,-166.66666667,0.00032646,7]
[328345258,1717198235087,-152.81332524,0.00032663,7]
[328345259,1717198235097,-652.78230323,0.00032664,7]
[328345260,1717198235106,-196.88615978,0.00032671,7]
[328345261,1717198235114,-150.0,0.00032722,2]
[328345262,1717198235124,-150.0,0.0003274,2]
[328345263,1717198235132,-150.0,0.0003274,2]
[328345264,1717198235142,-150.0,0.0003274,2]
[328345265,1717198235151,-150.0,0.0003274,2]
[328345266,1717198235160,-150.0,0.00032742,2]
[328345267,1717198235171,-159.25974205,0.00032747,7]
[328345268,1717198235182,-3151.03,0.00032747,2]
[328345269,1717198235192,-28210.4658445,0.00032755,10]
[328345270,1717198235201,-4238.6773672,0.00032758,7]
[328345271,1717198235210,-150.0,0.00032768,2]
[328345272,1717198235219,-4507.5887715,0.00032775,10]
[328345273,1717198235228,-153.16583406,0.00032779,7]
[328345274,1717198235237,-150.0,0.0003278,2]
[328345275,1717198235247,-4238.6773672,0.00032786,7]
[328345276,1717198235257,-150.0,0.00032787,2]
[328345277,1717198235265,-1445.49785237,0.00032794,2]
[328345278,1717198235276,-152.61175666,0.00032798,7]
[328345279,1717198235288,-152.61175666,0.00032822,7]
[328345280,1717198235297,-1647.1,0.00032822,2]
[328345281,1717198235306,-652.78230323,0.00032856,7]
[328345282,1717198235315,-150.0,0.00032863,2]
[328345283,1717198235326,-150.0,0.00032863,2]
[328345284,1717198235335,-652.78230323,0.00032871,7]
[328345285,1717198235344,-334.09113896,0.00032889,7]
[328345286,1717198235355,-300.64,0.00032901,2]
[328345287,1717198235364,-334.09113896,0.00032905,7]
[328345288,1717198235374,-196.88615978,0.00032908,7]
[328345289,1717198235383,-4238.6773672,0.00032911,7]
[328345290,1717198235392,-55.90614291,0.00032915,7]
[328345291,1717198235406,-105.54461936,0.00032915,7]
[328345292,1717198235415,-4238.6773672,0.00032916,7]
[328345293,1717198235428,-154.80833393,0.00032946,7]
[328345294,1717198235438,-684.28,0.00032947,2]
[328345295,1717198235447,-171.88319568,0.00032966,2]
[328345296,1717198235456,-150.0,0.00032966,2]
[328345297,1717198235466,-893.67767,0.0003297,2]
[328345298,1717198235476,-169.00998554,0.00032974,7]
[328345299,1717198235485,-2923.10063545,0.00032978,10]
[328345300,1717198235497,-25287.36520905,0.00032978,10]
[328345301,1717198235506,-334.09113896,0.0003298,7]
[328345302,1717198235518,-4507.5887715,0.00032987,10]
[328345303,1717198235528,-652.78230323,0.00032994,7]
[328345304,1717198235538,-1445.49785237,0.00032997,2]
[328345305,1717198235548,-305.06064231,0.00033,4]
[328345306,1717198235558,-200.00049423,0.00033,4]
[328345307,1717198235567,-150.000001,0.00033,2]
[328345308,1717198235576,-300.0,0.00033013,2]
[328345309,1717198235586,-154.11866915,0.00033018,7]
[328345310,1717198235596,-500.0,0.00033032,10]
[328345311,1717198235605,-154.46668613,0.00033075,7]
[328345312,1717198235615,-196.88615978,0.00033076,7]
[328345313,1717198235624,-196.88615978,0.00033086,7]
[328345314,1717198235633,-154.80833393,0.00033094,7]
[328345315,1717198235643,-2530.2291,0.000331,2]
[328345316,1717198235652,-28369.20008451,0.000331,2]
[328345318,1717198237947,-12455.42561549,0.000331,2]
[328345319,1717198237957,-220.66423378,0.00033111,7]
[328345320,1717198237966,-652.78230323,0.00033112,7]
[328345321,1717198237976,-652.78230323,0.00033132,7]
[328345322,1717198237985,-334.09113896,0.00033138,7]
[328345323,1717198237995,-167.0,0.00033185,2]
[328345324,1717198238004,-334.09113896,0.0003319,7]
[328345325,1717198238014,-154.2,0.0003319,2]
[328345326,1717198238023,-300.64,0.0003319,2]
[328345327,1717198238032,-300.64,0.0003319,2]
[328345328,1717198238042,-231.976128,0.0003319,2]
[328345329,1717198238051,-171.74670752,0.00033195,7]
[328345330,1717198238061,-2333.4442555,0.00033198,5]
[328345331,1717198238070,-185.93691833,0.00033198,5]
[328345332,1717198238080,-500.0,0.00033198,2]
[328345333,1717198238090,-2333.4442554,0.00033198,5]
[328345334,1717198238100,-2333.4442554,0.00033198,5]
[328345335,1717198238110,-2333.4442554,0.00033199,5]
[328345336,1717198238119,-2333.4442554,0.00033199,5]
[328345337,1717198238129,-300.0,0.00033199,2]
[328345338,1717198238138,-2333.4442554,0.00033199,5]
[328345339,1717198238148,-500.0,0.00033199,11]
[328345340,1717198238157,-500.0,0.00033199,11]
[328345341,1717198238166,-500.0,0.00033199,11]
[328345342,1717198238177,-250.0,0.00033199,11]
[328345343,1717198238186,-500.0,0.00033199,11]
[328345344,1717198238196,-502.01985693,0.00033199,11]
[328345345,1717198238205,-103.87456949,0.00033199,11]
[328345346,1717198238217,-396.12543051,0.00033199,11]
[328345347,1717198238226,-500.0,0.00033199,11]
[328345348,1717198238235,-500.0,0.00033199,11]
[328345349,1717198238244,-500.0,0.00033199,11]
[328345350,1717198238253,-392.18101189,0.00033199,11]
[328345351,1717198238263,-2333.4442554,0.00033199,5]
[328345352,1717198238272,-2333.4442554,0.00033199,5]
[328345353,1717198238286,-2333.4442554,0.00033199,5]
[328345354,1717198238295,-2333.4442554,0.000332,5]
[328345355,1717198238304,-2333.4442554,0.000332,5]
[328345356,1717198238313,-152.31286807,0.000332,2]
[328345357,1717198238326,-100000.0,0.000332,2]
[328345358,1717198238335,-10000.0,0.000332,2]
[328345359,1717198238344,-3788.24077708,0.000332,2]
[328345492,1717198243011,-357.0,0.00032298,5]
[328345495,1717198243021,-18.02,0.000332,2]
[328345510,1717198243213,-1064.02369621,0.000332,2]
[328345530,1717198243562,826.43788799,0.00030273,30]
[328345600,1717198246169,-403.7347532,0.00017807,2]
[328345601,1717198246179,-352.63,0.00032466,2]
[328345602,1717198246188,-39243.6353068,0.000332,2]
[328345618,1717198246591,-938.9,0.000332,2]
[328345619,1717198246603,-1681.525,0.000332,2]
[328345621,1717198268758,3759.47426152,0.00030273,30]
[328345638,1717198444487,3406.6625405,0.00034806,30]
[328345640,1717198592644,10988.01702285,0.00034806,120]
[328345641,1717198607410,12073.60543089,0.00034806,30]
[328345642,1717198631165,3782.75832222,0.00034806,120]
[328345643,1717198631540,3630.02634172,0.00034806,120]
[328345644,1717198632732,256.42958406,0.00034806,30]
[328345645,1717198633369,1084.81577786,0.00034806,30]
[328345646,1717198635332,596.25658898,0.00034806,30]
[328345647,1717198635360,284.86511756,0.00034806,30]
[328345764,1717199138387,-155.0,0.0001679,2]
[328345765,1717199138406,-155.0,0.00016791,2]
[328345766,1717199138426,-300.0,0.00016809,2]
[328345767,1717199138449,-163.61730037,0.00017014,2]
[328345768,1717199138469,-693.31250537,0.00017118,2]
[328345791,1717199431877,-1469.32147917,0.00017018,2]
[328345792,1717199431889,-346.13390061,0.00017118,2]
[328345793,1717199431898,-1045.47618149,0.00017118,2]
[328345794,1717199431907,-281.94936221,0.00019448,2]
[328345795,1717199431992,-129.1261023,0.00019448,2]
[328345796,1717199432001,-150.0,0.00019449,2]
[328345797,1717199432011,-60.7268877,0.00019699,2]
[328345798,1717199432023,-89.2731123,0.00019699,2]
[328345799,1717199432032,-880.52,0.00019724,2]
[328345800,1717199432042,-499.99,0.00019726,2]
[328345801,1717199432051,-1776.83731686,0.0002,2]
[328345802,1717199432060,-158.77642645,0.0002,2]
[328345803,1717199432070,-155.0,0.0002,2]
[328345804,1717199432079,-210.0,0.00021394,2]
[328345805,1717199432088,-2345.14585855,0.00021757,2]
[328345806,1717199432100,-682.44803636,0.00021757,2]
[328345807,1717199432112,-562.43544538,0.00021757,2]
[328345808,1717199432125,-1266.7972655,0.00021757,2]
[328345809,1717199432137,-308.14008547,0.00021757,2]
[328345810,1717199432150,-875.59927975,0.00021757,2]
[328345811,1717199432161,-2603.67402899,0.00021757,2]
[328345812,1717199432170,-178.83599956,0.000219,2]
[328345813,1717199432182,-801.36554768,0.000219,2]
[328345814,1717199432237,-19.79845276,0.000219,2]
[328345816,1717199432247,-244.57813148,0.00023533,2]
[328345830,1717199437942,-48.42186852,0.00023533,2]
[328345832,1717199437952,-433.83622735,0.00024,2]
[328345833,1717199437961,-858.00667174,0.000241,2]
[328345834,1717199437973,-179.46453547,0.000241,2]
[328345835,1717199437982,-395.31684868,0.0002421,2]
[328345836,1717199437991,-157.43,0.00024384,2]
[328345837,1717199437999,-158.66,0.00024384,2]
[328345838,1717199438008,-367.41400727,0.000247,2]
[328345839,1717199438019,-632.58599273,0.000247,2]
[328345840,1717199438028,-408.29,0.00024896,2]
[328345841,1717199438037,-951.87335296,0.00025,2]
[328345842,1717199438048,-98.12664704,0.00025,2]
[328345843,1717199438057,-353.4519961,0.00025,2]
[328345844,1717199438067,-302.52178472,0.00025,2]
[328345845,1717199438122,-618.34466348,0.00025,2]
[328345846,1717199438131,-64.83053752,0.00025,2]
[328345847,1717199438142,-90.16946248,0.00025,2]
[328345848,1717199438150,-613.56,0.00026491,2]
[328345849,1717199438160,-337.03,0.00026591,2]
[328345850,1717199438169,-2000.0,0.00026726,2]
[328345851,1717199438178,-250.0,0.00026789,2]
[328345852,1717199438186,-200.0,0.000269,2]
[328345853,1717199438195,-4242.95340713,0.00026901,2]
[328345854,1717199438204,-250.0,0.00026911,2]
[328345855,1717199438213,-11569.0793792,0.00026911,2]
[328345856,1717199438225,-3638.90769307,0.00026911,2]
[328345857,1717199438236,-524.18265939,0.00026911,2]
[328345858,1717199438248,-330.2694009,0.00026911,2]
[328345859,1717199438258,-7827.56086744,0.00026911,2]
[328345860,1717199438267,-166.91,0.00026914,2]
[328345861,1717199438276,-730.57,0.0002692,2]
[328345862,1717199438285,-1100.0,0.00027,2]
[328345863,1717199438293,-2345.80834095,0.00027,2]
[328345864,1717199438302,-4021.482568,0.00027,2]
[328345865,1717199438311,-400.71,0.00027066,2]
[328345866,1717199438319,-250.0,0.00027082,2]
[328345867,1717199438328,-166.91,0.00027114,2]
[328345868,1717199438337,-408.29,0.0002716,2]
[328345869,1717199438345,-166.91,0.00027315,2]
[328345870,1717199438354,-370.35996809,0.0002739,2]
[328345871,1717199438364,-736.0,0.000274,2]
[328345873,1717199438372,-166.91,0.00027515,2]
[328345875,1717199438381,-166.91,0.00027715,2]
[328345876,1717199438390,-166.91,0.00027916,2]
[328345878,1717199438399,-167.01,0.00027922,2]
[328345880,1717199438407,-166.91,0.00028116,2]
[328345882,1717199438416,-163.36,0.00028156,2]
[328345884,1717199438425,-166.91,0.00028316,2]
[328345886,1717199438434,-1150.0,0.00029,2]
[328345887,1717199438443,-613.56,0.00029231,2]
[328345889,1717199438451,-408.29,0.00029424,2]
[328345891,1717199438460,-180.0,0.0002967,2]
[328345892,1717199438469,-138.63074687,0.000299,2]
[328345895,1717199438482,-1869.65827179,0.000299,2]
[328345896,1717199438492,-800.0,0.00029945,2]
[328345898,1717199438501,-1519.10902259,0.0003,2]
[328345900,1717199438509,-7435.4918505,0.0003,4]
[328345902,1717199438518,-305.06064231,0.0003,4]
[328345904,1717199438527,-689.37,0.00030091,2]
[328345906,1717199438537,-736.05590411,0.000301,2]
[328345908,1717199438545,-730.57,0.00030285,2]
[328345910,1717199438554,-211.1015,0.000309,2]
[328345911,1717199438563,-3747.4186,0.000309,2]
[328345912,1717199438572,-1000.0,0.000309,2]
[328345913,1717199438581,-4683.8202,0.00030998,2]
[328345914,1717199438590,-3308.21800707,0.00030998,2]
[328345915,1717199438601,-611.56751101,0.00030998,2]
[328345916,1717199438612,-254.99999,0.00030998,2]
[328346100,1717199440609,-725.35967548,0.00030998,2]
[328346104,1717199440624,-843.81704854,0.00030998,2]
[328346114,1717199440670,-1292.76814614,0.00030998,2]
[328346122,1717199440732,-463.26962176,0.00030998,2]
[328346124,1717199440741,-64.12594047,0.00031,10]
[328346174,1717199442999,-250.0,0.00030179,2]
[328346175,1717199443013,-4525.67927739,0.00031,10]
[328346176,1717199443031,-360.21599898,0.00031,10]
[328346177,1717199443048,-574.01073249,0.00031,10]
[328346178,1717199443058,-1200.0,0.00031,2]
[328346179,1717199443067,-19.25235663,0.00031012,7]
[328346180,1717199443079,-135.10492069,0.00031012,7]
[328346181,1717199443088,-1165.39763693,0.00031015,10]
[328346182,1717199443101,-1713.15654517,0.00031015,10]
[328346183,1717199443112,-153.66734649,0.00031016,7]
[328346184,1717199443121,-5222.66206841,0.00031039,5]
[328346185,1717199443133,-2078.28793159,0.00031039,5]
[328346186,1717199443142,-7364.75,0.0003105,5]
[328346187,1717199443151,-150.79530949,0.0003106,7]
[328346188,1717199443160,-180.68723159,0.00031076,2]
[328346189,1717199443170,-450.75887715,0.00031076,10]
[328346190,1717199443179,-150.32,0.00031088,2]
[328346191,1717199443189,-2384.61238864,0.00031091,7]
[328346192,1717199443198,-391.06069415,0.00031097,2]
[328346193,1717199443208,-16713.10238109,0.00031098,2]
[328346194,1717199443230,-117084.35529899,0.00031098,2]
[328346195,1717199443347,-2282.775512,0.00031098,2]
[328346196,1717199443358,-453.0,0.00031098,2]
[328346197,1717199443407,-707.66467926,0.00031098,2]
[328346198,1717199443419,-932.80000002,0.00031098,2]
[328346209,1717199446019,-7500.0,0.00030998,2]
[328346210,1717199446030,-9220.32169693,0.00031098,2]
[328346211,1717199446083,-1663.7332551,0.00031098,2]
[328346212,1717199446261,-95942.24717661,0.00031098,2]
[328346213,1717199446271,-150.32,0.00031176,2]
[328346214,1717199446281,-100000.0,0.00031186,2]
[328346215,1717199446291,-154.3648177,0.00031196,7]
[328346216,1717199446300,-39253.4903,0.00031198,2]
[328346217,1717199446310,-1000.0,0.00031198,2]
[328346218,1717199446319,-153.66734649,0.00031223,7]
[328346219,1717199446328,-2878.55418204,0.00031258,10]
[328346220,1717199446338,-154.35727732,0.00031306,7]
[328346221,1717199446348,-450.75887715,0.00031312,10]
[328346222,1717199446358,-2384.61238864,0.00031328,7]
[328346223,1717199446368,-153.75275956,0.00031337,7]
[328346224,1717199446380,-154.53628342,0.00031344,7]
[328346225,1717199446390,-150.79530949,0.00031378,7]
[328346226,1717199446400,-180.68723154,0.00031379,2]
[328346227,1717199446409,-154.35727732,0.00031485,7]
[328346228,1717199446419,-155.29733055,0.000315,7]
[328346229,1717199446430,-2878.55418204,0.00031501,10]
[328346230,1717199446440,-153.66734649,0.00031501,7]
[328346231,1717199446450,-178.46968007,0.00031507,7]
[328346232,1717199446459,-224.1869105,0.00031512,7]
[328346233,1717199446470,-224.1869105,0.0003153,7]
[328346234,1717199446483,-154.53628342,0.00031534,7]
[328346235,1717199446493,-450.75887715,0.00031548,10]
[328346236,1717199446502,-182.98503449,0.00031555,7]
[328346237,1717199446513,-153.66734649,0.00031576,7]
[328346238,1717199446529,-159.24869843,0.00031578,7]
[328346239,1717199446540,-155.29733055,0.00031588,7]
[328346240,1717199446551,-2384.61238864,0.00031637,7]
[328346241,1717199446563,-352.63,0.00031644,2]
[328346242,1717199446573,-352.63,0.00031644,2]
[328346243,1717199446585,-581.7,0.00031644,2]
[328346244,1717199446596,-154.35727732,0.00031645,7]
[328346245,1717199446605,-393.00208177,0.00031647,7]
[328346246,1717199446614,-154.53628342,0.00031655,7]
[328346247,1717199446627,-150.32,0.00031666,2]
[328346248,1717199446636,-108777.24393144,0.00031676,4]
[328346249,1717199446647,-180.68723154,0.00031683,2]
[328346250,1717199446656,-408.29,0.00031688,2]
[328346251,1717199446666,-2878.55418204,0.00031743,10]
[328346252,1717199446676,-150.0,0.00031771,2]
[328346253,1717199446685,-450.75887715,0.00031784,10]
[328346254,1717199446695,-197.054,0.00031817,2]
[328346255,1717199446706,-154.807,0.00031817,2]
[328346256,1717199446716,-2384.61238864,0.00031835,7]
[328346257,1717199446725,-2384.61238864,0.00031857,7]
[328346258,1717199446735,-2384.61238864,0.00031915,7]
[328346259,1717199446745,-364.0,0.00031934,5]
[328346260,1717199446754,-153.66734649,0.00031966,7]
[328346261,1717199446763,-613.56,0.00031971,2]
[328346262,1717199446772,-154.53628342,0.00031985,7]
[328346263,1717199446782,-2878.55418204,0.00031986,10]
[328346264,1717199446791,-180.68723154,0.00031986,2]
[328346265,1717199446800,-150.0,0.00031988,2]
[328346266,1717199446810,-393.00208177,0.00032012,7]
[328346267,1717199446820,-450.75887715,0.0003202,10]
[328346268,1717199446829,-393.00208177,0.00032021,7]
[328346269,1717199446838,-154.77633646,0.00032037,7]
[328346270,1717199446847,-166.66666668,0.00032072,7]
[328346271,1717199446857,-154.35727732,0.00032107,7]
[328346272,1717199446866,-150.0,0.00032131,2]
[328346273,1717199446875,-150.0,0.00032192,2]
[328346274,1717199446885,-300.0,0.00032192,2]
[328346275,1717199446894,-155.29733055,0.00032206,7]
[328346276,1717199446903,-158.03040468,0.00032207,7]
[328346277,1717199446912,-154.35727732,0.0003222,7]
[328346278,1717199446921,-2878.55418204,0.00032229,10]
[328346279,1717199446931,-450.75887715,0.00032256,10]
[328346280,1717199446940,-153.66734649,0.00032286,7]
[328346281,1717199446949,-180.68723154,0.0003229,2]
[328346282,1717199446958,-224.1869105,0.00032298,7]
[328346283,1717199446970,-153.66734649,0.00032304,7]
[328346284,1717199446980,-393.00208177,0.00032321,7]
[328346285,1717199446990,-159.19545042,0.00032345,7]
[328346286,1717199446999,-152.81332525,0.00032346,7]
[328346287,1717199447009,-2384.61238864,0.00032356,7]
[328346288,1717199447018,-153.75275956,0.00032365,7]
[328346289,1717199447027,-224.1869105,0.00032409,7]
[328346290,1717199447037,-2384.61238864,0.00032426,7]
[328346291,1717199447046,-393.00208177,0.00032434,7]
[328346292,1717199447055,-154.35727732,0.00032451,7]
[328346293,1717199447064,-154.77633646,0.00032462,7]
[328346294,1717199447074,-2878.55418204,0.00032472,10]
[328346295,1717199447083,-224.1869105,0.00032473,7]
[328346296,1717199447093,-224.1869105,0.00032476,7]
[328346297,1717199447102,-450.75887715,0.00032492,10]
[328346298,1717199447111,-224.1869105,0.00032495,7]
[328346299,1717199447121,-150.79530949,0.00032499,7]
[328346300,1717199447131,-150.79530949,0.00032502,7]
[328346301,1717199447140,-256.3994942,0.00032504,7]
[328346302,1717199447150,-153.66734649,0.00032542,7]
[328346303,1717199447159,-2325.82,0.00032548,30]
[328346304,1717199447168,-393.00208177,0.00032563,7]
[328346305,1717199447180,-150.79530949,0.00032582,7]
[328346306,1717199447189,-152.67898187,0.00032591,7]
[328346307,1717199447198,-180.68723154,0.00032593,2]
[328346308,1717199447208,-154.35727732,0.00032598,7]
[328346309,1717199447218,-154.35727732,0.00032601,7]
[328346310,1717199447228,-393.00208177,0.00032639,7]
[328346311,1717199447238,-154.53628342,0.00032648,7]
[328346312,1717199447248,-2384.61238864,0.00032648,7]
[328346313,1717199447258,-154.35727732,0.0003266,7]
[328346314,1717199447267,-152.67898187,0.00032674,7]
[328346315,1717199447277,-150.0,0.00032687,2]
[328346316,1717199447286,-150.79530949,0.00032697,7]
[328346317,1717199447296,-155.29733055,0.00032706,7]
[328346318,1717199447305,-2878.55418204,0.00032714,10]
[328346319,1717199447314,-160.33226931,0.00032719,7]
[328346320,1717199447325,-450.75887715,0.00032728,10]
[328346321,1717199447337,-2384.61238864,0.0003273,7]
[328346322,1717199447347,-150.79530949,0.00032733,7]
[328346323,1717199447357,-154.77633646,0.00032745,7]
[328346324,1717199447368,-154.3648177,0.00032751,7]
[328346325,1717199447378,-224.1869105,0.00032768,7]